bitfinex/quotes_SOLUSD_20250528
["timestamp","ask_amount","ask_price","bid_price","bid_amount"]
[1748431311716,0.08357085,173.59,173.53,88.1]
[1748431312131,10.58880074,173.59,173.53,88.1]
[1748431317043,10.58880074,173.59,173.54,9.08]
[1748431318515,0.08357085,173.59,173.54,9.08]
[1748431318818,0.08357085,173.59,173.54,97.18]
[1748431319231,10.58880074,173.59,173.54,97.18]
[1748431319915,0.08357085,173.59,173.54,97.18]
[1748431325526,10.58880074,173.59,173.54,132.32]
[1748431330937,0.08357085,173.59,173.54,133.8325]
[1748431338668,0.08357085,173.59,173.57,26.0]
[1748431339956,0.08357085,173.59,173.58,26.0]
[1748431340772,0.08357085,173.59,173.58,115.6617]
[1748431342752,0.08357085,173.59,173.58,120.18643891]
[1748431343973,10.50522989,173.67,173.58,115.6617]
[1748431344272,10.50522989,173.67,173.62,26.0]
[1748431348142,10.50522989,173.67,173.6,9.08]
[1748431348143,10.50522989,173.68,173.63,26.0]
[1748431348343,10.50522989,173.69,173.63,26.0]
[1748431348569,10.50522989,173.69,173.63,114.1]
[1748431349702,10.50522989,173.68,173.63,114.1]
[1748431350925,9.08,173.72,173.63,114.1]
[1748431351208,10.50522989,173.69,173.64,1.5598]
[1748431351602,10.50522989,173.7,173.64,89.6598]
[1748431351846,10.50522989,173.69,173.64,89.6598]
[1748431355312,8.1301,173.75,173.64,124.7798]
[1748431355585,10.50522989,173.71,173.64,124.7798]
[1748431357211,10.50522989,173.7,173.64,124.7798]
[1748431357412,10.50522989,173.68,173.64,89.6598]
[1748431357587,10.50522989,173.68,173.64,1.5598]
[1748431358749,10.50522989,173.65,173.62,88.1]
[1748431358978,10.50522989,173.64,173.6,98.7995]
[1748431359992,16.40176542,173.64,173.6,98.7995]
[1748431360608,16.40176542,173.65,173.6,98.7995]
[1748431361009,16.40176542,173.64,173.6,98.7995]
[1748431361911,16.40176542,173.65,173.6,98.7995]
[1748431362295,16.40176542,173.66,173.6,98.7995]
[1748431363705,16.40176542,173.65,173.6,98.7995]
[1748431366226,16.40176542,173.65,173.6,133.9195]
[1748431379905,16.40176542,173.64,173.6,133.9195]
[1748431380405,16.40176542,173.64,173.6,124.8395]
[1748431380923,16.40176542,173.63,173.6,89.7195]
[1748431381225,16.40176542,173.62,173.6,88.1]
[1748431381899,26.0,173.67,173.6,88.1]
[1748431382091,10.49984427,173.63,173.6,88.1]
[1748431382317,10.49984427,173.64,173.6,88.1]
[1748431382524,10.49984427,173.66,173.6,88.1]
[1748431382979,10.49984427,173.65,173.6,88.1]
[1748431385298,10.49984427,173.65,173.6,97.16]
[1748431387704,26.0,173.67,173.6,97.16]
[1748431387882,10.49984427,173.65,173.6,97.16]
[1748431396808,10.49984427,173.66,173.6,97.16]
[1748431397004,10.49984427,173.66,173.61,1.5414]
[1748431397303,10.49984427,173.66,173.61,36.6414]
[1748431398711,10.49984427,173.66,173.61,124.7414]
[1748431399595,10.49984427,173.66,173.61,133.8014]
[1748431409709,10.49984427,173.65,173.61,133.8014]
[1748431410312,10.49984427,173.64,173.61,133.8014]
[1748431410518,10.49984427,173.64,173.61,98.7014]
[1748431410823,10.49984427,173.65,173.61,98.7014]
[1748431414101,10.49984427,173.66,173.61,98.7014]
[1748431417725,10.49984427,173.65,173.61,98.7014]
[1748431418736,10.49984427,173.65,173.61,89.6414]
[1748431428150,10.49984427,173.66,173.61,89.6414]
[1748431438126,10.49984427,173.65,173.61,89.6414]
[1748431438340,10.49984427,173.64,173.61,89.6414]
[1748431440827,10.49984427,173.65,173.61,89.6414]
[1748431441423,10.49984427,173.62,173.57,50.7351]
[1748431441626,25.11734886,173.69,173.58,26.0]
[1748431441627,10.49984427,173.61,173.58,26.0]
[1748431442125,10.49984427,173.62,173.58,26.0]
[1748431443726,10.49984427,173.63,173.58,26.0]
[1748431444828,10.49984427,173.63,173.58,26.0]
[1748431445651,25.11734886,173.69,173.58,26.0]
[1748431445860,10.49984427,173.63,173.58,26.0]
[1748431446353,12.05802803,173.72,173.6,26.0]
[1748431446536,10.49984427,173.67,173.6,114.1]
[1748431446929,35.06,173.72,173.6,114.1]
[1748431447128,10.49984427,173.69,173.64,26.0]
[1748431447349,10.49984427,173.69,173.64,114.1]
[1748431447738,10.49984427,173.68,173.64,114.1]
[1748431448764,10.49984427,173.67,173.64,114.1]
[1748431450470,10.49984427,173.66,173.64,114.1]
[1748431451254,10.49984427,173.66,173.64,88.1]
[1748431451856,10.49984427,173.65,173.64,88.1]
[1748431452055,10.49984427,173.66,173.63,97.16]
[1748431454869,10.49984427,173.65,173.63,97.16]
[1748431455064,10.49984427,173.65,173.63,9.06]
[1748431455647,10.49984427,173.65,173.62,88.1]
[1748431455852,10.49984427,173.64,173.62,88.1]
[1748431456450,10.49984427,173.63,173.62,88.1]
[1748431456951,10.49984427,173.63,173.6,88.1]
[1748431457155,10.49984427,173.62,173.59,89.6334]
[1748431460859,10.49984427,173.61,173.59,1.5334]
[1748431461758,10.49984427,173.62,173.59,1.5334]
[1748431466872,10.49984427,173.62,173.59,89.6334]
[1748431470667,10.49984427,173.62,173.59,88.1]
[1748431470899,10.49984427,173.61,173.59,88.1]
[1748431471080,10.49984427,173.6,173.59,88.1]
[1748431471288,10.49984427,173.61,173.59,88.1]
[1748431472693,10.49984427,173.61,173.58,97.16]
[1748431474075,10.49984427,173.61,173.58,9.06]
[1748431474386,10.49984427,173.6,173.58,97.16]
[1748431475490,10.49984427,173.6,173.58,88.1]
[1748431475886,10.49984427,173.6,173.56,89.6065]
[1748431477670,10.49984427,173.59,173.56,89.6065]
[1748431480092,53.68964886,173.68,173.56,89.6065]
[1748431480093,10.49984427,173.58,173.56,89.6065]
[1748431480493,53.68964886,173.68,173.56,89.6065]
[1748431480494,10.49984427,173.59,173.56,89.6065]
[1748431485601,10.49984427,173.62,173.56,89.6065]
[1748431488603,53.68964886,173.68,173.56,89.6065]
[1748431488604,10.49984427,173.61,173.56,89.6065]
[1748431494607,88.76964886,173.68,173.56,89.6065]
[1748431494802,10.49984427,173.61,173.56,89.6065]
[1748431499388,10.49984427,173.61,173.56,115.6065]
[1748431500414,10.49984427,173.6,173.56,115.6065]
[1748431502904,10.49984427,173.6,173.56,89.6065]
[1748431505415,10.49984427,173.61,173.56,89.6065]
[1748431513703,9.04,173.66,173.56,89.6065]
[1748431513704,10.49984427,173.63,173.56,89.6065]
[1748431514019,10.49984427,173.63,173.59,26.0]
[1748431517325,10.49984427,173.63,173.59,114.1]
[1748431518505,16.5857,173.69,173.59,114.1]
[1748431518818,10.49984427,173.63,173.59,114.1]
[1748431520821,10.49984427,173.64,173.59,114.1]
[1748431521624,26.0,173.71,173.59,114.1]
[1748431521800,7.6347,173.73,173.63,26.0]
[1748431521801,10.49984427,173.67,173.63,26.0]
[1748431522002,10.49984427,173.68,173.63,114.1]
[1748431523819,7.6347,173.73,173.63,114.1]
[1748431524025,10.49984427,173.68,173.63,114.1]
[1748431524619,10.49984427,173.69,173.63,114.1]
[1748431525415,10.49984427,173.69,173.63,120.5239]
[1748431525845,10.49984427,173.7,173.63,120.5239]
[1748431526134,10.49984427,173.7,173.67,26.0]
[1748431526343,10.49984427,173.7,173.67,114.1]
[1748431527214,10.49984427,173.69,173.67,114.1]
[1748431528547,10.49984427,173.7,173.67,114.1]
[1748431530439,9.02,173.74,173.67,114.1]
[1748431530643,10.49984427,173.7,173.67,114.1]
[1748431532649,10.49984427,173.69,173.67,114.1]
[1748431534946,10.49984427,173.69,173.67,26.0]
[1748431535299,10.49984427,173.68,173.64,115.6761]
[1748431537266,10.49984427,173.69,173.64,115.6761]
[1748431538841,9.02,173.74,173.64,115.6761]
[1748431539044,10.49984427,173.69,173.64,115.6761]
[1748431543480,9.02,173.74,173.64,115.6761]
[1748431543778,10.49984427,173.69,173.64,115.6761]
[1748431544844,10.49984427,173.7,173.64,115.6761]
[1748431545689,10.49984427,173.69,173.64,115.6761]
[1748431547177,10.49984427,173.7,173.64,89.6761]
[1748431549263,10.49984427,173.69,173.64,89.6761]
[1748431551089,10.49984427,173.7,173.64,89.6761]
[1748431557580,10.49984427,173.69,173.64,89.6761]
[1748431558380,10.49984427,173.7,173.64,89.6761]
[1748431559973,10.49984427,173.71,173.64,89.6761]
[1748431561183,10.49984427,173.72,173.65,26.0]
[1748431561597,10.49984427,173.72,173.65,114.1]
[1748431564372,10.49984427,173.71,173.65,88.1]
[1748431564785,10.49984427,173.69,173.65,88.1]
[1748431565390,10.49984427,173.7,173.65,88.1]
[1748431565969,18.64964886,173.75,173.65,88.1]
[1748431566170,10.49984427,173.71,173.65,88.1]
[1748431567474,9.02,173.76,173.65,88.1]
[1748431567809,10.49984427,173.71,173.65,88.1]
[1748431568294,10.49984427,173.72,173.65,88.1]
[1748431572072,10.49984427,173.71,173.65,88.1]
[1748431574487,10.49984427,173.71,173.65,97.12]
[1748431584006,10.49984427,173.71,173.65,88.1]
[1748431584591,10.49984427,173.72,173.65,88.1]
[1748431589704,10.49984427,173.71,173.65,88.1]
[1748431594625,10.49984427,173.72,173.65,88.1]
[1748431596224,27.5249,173.77,173.65,88.1]
[1748431596526,10.49984427,173.72,173.65,88.1]
[1748431598717,27.5249,173.77,173.65,88.1]
[1748431598901,10.49984427,173.72,173.65,88.1]
[1748431602431,10.49984427,173.71,173.65,88.1]
[1748431602744,10.49984427,173.7,173.65,88.1]
[1748431603244,10.49984427,173.71,173.65,88.1]
[1748431608145,27.64964886,173.76,173.65,88.1]
[1748431608340,10.49984427,173.72,173.65,88.1]
[1748431612843,10.49984427,173.71,173.65,88.1]
[1748431622766,10.49984427,173.72,173.65,88.1]
[1748431627144,10.49984427,173.71,173.65,88.1]
[1748431630165,10.49984427,173.7,173.65,88.1]
[1748431630354,10.49984427,173.69,173.65,88.1]
[1748431631572,10.49984427,173.68,173.65,88.1]
[1748431633774,10.49984427,173.67,173.64,98.6761]
[1748431633949,10.49984427,173.67,173.64,97.1]
[1748431635448,36.49984427,173.67,173.64,97.1]
[1748431636069,10.49984427,173.67,173.64,97.1]
[1748431636249,10.49984427,173.66,173.64,97.1]
[1748431636574,10.49984427,173.66,173.64,88.1]
[1748431648499,18.64964886,173.71,173.64,88.1]
[1748431648671,10.49984427,173.67,173.64,88.1]
[1748431651900,9.0,173.72,173.64,88.1]
[1748431652191,10.49984427,173.72,173.65,1.5237]
[1748431652382,10.49984427,173.72,173.65,10.5037]
[1748431652865,26.0,173.73,173.65,10.5037]
[1748431653183,10.49984427,173.72,173.65,10.5037]
[1748431653374,10.49984427,173.71,173.65,10.5037]
[1748431656191,10.49984427,173.71,173.65,98.6037]
[1748431658582,44.64964886,173.76,173.65,98.6037]
[1748431658887,10.49984427,173.71,173.65,98.6037]
[1748431661596,44.64964886,173.76,173.65,98.6037]
[1748431661796,10.49984427,173.73,173.65,98.6037]
[1748431662395,10.49984427,173.72,173.65,98.6037]
[1748431663805,10.49984427,173.73,173.65,98.6037]
[1748431666203,26.0,173.76,173.65,98.6037]
[1748431666416,10.49984427,173.73,173.65,98.6037]
[1748431667118,10.49984427,173.72,173.65,98.6037]
[1748431669710,10.49984427,173.73,173.65,98.6037]
[1748431671804,10.49984427,173.73,173.66,2.14896093]
[1748431672005,10.49984427,173.73,173.67,2.1489605]
[1748431672310,10.49984427,173.73,173.68,2.1489605]
[1748431672503,10.49984427,173.73,173.69,2.1489605]
[1748431672706,10.49984427,173.73,173.7,2.1489605]
[1748431672889,10.49984427,173.73,173.71,2.1489605]
[1748431673206,10.49984427,173.73,173.72,2.14892623]
[1748431673414,10.49984427,173.73,173.72,2.14889695]
[1748431674012,10.49984427,173.73,173.72,2.14882801]
[1748431674523,10.49984427,173.73,173.69,88.1]
[1748431674691,10.49984427,173.71,173.7,2.14874885]
[1748431675594,10.49984427,173.71,173.69,88.1]
[1748431680133,10.49984427,173.72,173.69,88.1]
[1748431695436,10.49984427,173.73,173.69,88.1]
[1748431696335,10.49984427,173.72,173.69,88.1]
[1748431702045,10.49984427,173.73,173.69,88.1]
[1748431705841,10.49984427,173.72,173.69,88.1]
[1748431707648,10.49984427,173.73,173.69,88.1]
[1748431708457,10.49984427,173.72,173.69,88.1]
[1748431715249,53.62964886,173.78,173.69,88.1]
[1748431715428,10.49984427,173.73,173.69,88.1]
[1748431720450,10.49984427,173.74,173.69,88.1]
[1748431720964,10.49984427,173.73,173.69,88.1]
[1748431723347,10.49984427,173.72,173.69,88.1]
[1748431733361,10.49984427,173.71,173.69,88.1]
[1748431733978,10.49984427,173.7,173.69,88.1]
[1748431734265,10.49984427,173.7,173.65,88.1]
[1748431734266,52.49922135,173.7,173.65,88.1]
[1748431734468,10.49984427,173.66,173.65,88.1]
[1748431734663,10.49984427,173.66,173.62,97.08]
[1748431734865,18.64964886,173.69,173.62,97.08]
[1748431734866,10.49984427,173.63,173.62,97.08]
[1748431735376,10.49984427,173.63,173.62,88.1]
[1748431740665,10.49984427,173.64,173.62,88.1]
[1748431740859,10.49984427,173.65,173.62,88.1]
[1748431742955,10.49984427,173.64,173.62,88.1]
[1748431744170,10.49984427,173.63,173.62,88.1]
[1748431747460,10.49984427,173.64,173.62,88.1]
[1748431751673,10.49984427,173.63,173.62,88.1]
[1748431771607,10.49984427,173.63,173.58,88.1]
[1748431771781,10.49984427,173.6,173.58,88.1]
[1748431777085,44.64964886,173.65,173.58,88.1]
[1748431777403,10.49984427,173.6,173.58,88.1]
[1748431780008,10.39243176,173.6,173.58,88.1]
[1748431781693,26.0,173.64,173.58,88.1]
[1748431782188,10.49984427,173.6,173.58,88.1]
[1748431782895,10.49984427,173.59,173.58,88.1]
[1748431791115,10.49984427,173.6,173.58,88.1]
[1748431791303,10.49984427,173.61,173.58,88.1]
[1748431792699,10.49984427,173.6,173.58,88.1]
[1748431800823,10.49984427,173.6,173.56,1.6241]
[1748431801036,10.49984427,173.58,173.56,1.6241]
[1748431801402,10.49984427,173.59,173.56,1.6241]
[1748431803932,10.49984427,173.6,173.56,1.6241]
[1748431806300,26.0,173.66,173.56,1.6241]
[1748431806512,18.64964886,173.69,173.57,6.5112]
[1748431806730,10.49984427,173.64,173.57,6.5112]
[1748431809637,10.49984427,173.64,173.57,11.1342844]
[1748431813835,10.49984427,173.64,173.6,26.0]
[1748431814014,18.64964886,173.69,173.6,26.0]
[1748431814215,10.49984427,173.65,173.6,26.0]
[1748431814616,18.64964886,173.69,173.6,26.0]
[1748431814817,10.49984427,173.66,173.6,26.0]
[1748431816642,10.49984427,173.67,173.6,26.0]
[1748431816845,10.49984427,173.67,173.61,1.6194]
[1748431817025,10.49984427,173.68,173.61,10.5794]
[1748431817219,10.49984427,173.69,173.61,10.5794]
[1748431817743,41.99937708,173.7,173.61,10.5794]
[1748431817949,10.49984427,173.66,173.61,10.5794]
[1748431818127,41.99937708,173.7,173.61,10.5794]
[1748431818446,10.49984427,173.66,173.61,10.5794]
[1748431818759,10.49984427,173.69,173.61,10.5794]
[1748431819247,10.49984427,173.68,173.61,10.5794]
[1748431820350,10.49984427,173.67,173.61,10.5794]
[1748431821255,10.49984427,173.65,173.61,10.5794]
[1748431824768,10.49984427,173.66,173.61,10.5794]
[1748431826247,10.49984427,173.65,173.61,10.5794]
[1748431828535,10.49984427,173.64,173.61,8.96]
[1748431829050,10.49984427,173.62,173.61,8.96]
[1748431829249,10.49984427,173.62,173.57,1.6159]
[1748431829457,10.49984427,173.59,173.56,8.96]
[1748431833146,18.64964886,173.64,173.56,8.96]
[1748431833349,10.49984427,173.59,173.56,8.96]
[1748431834557,10.49984427,173.58,173.56,8.96]
[1748431836061,10.49984427,173.59,173.56,8.96]
[1748431838353,8.96,173.67,173.56,8.96]
[1748431838354,10.49984427,173.62,173.56,8.96]
[1748431838552,10.49984427,173.63,173.57,26.0]
[1748431838955,8.96,173.67,173.59,27.641]
[1748431838956,10.49984427,173.64,173.59,27.641]
[1748431839555,18.64964886,173.68,173.59,27.641]
[1748431839877,10.49984427,173.64,173.59,27.641]
[1748431840287,10.49984427,173.65,173.59,62.561]
[1748431841360,10.49984427,173.66,173.59,68.652]
[1748431842067,16.39887152,173.67,173.59,68.652]
[1748431844003,16.39887152,173.68,173.59,68.652]
[1748431846075,16.39887152,173.67,173.59,68.652]
[1748431850688,16.39887152,173.67,173.59,68.628]
[1748431851369,27.58964886,173.72,173.59,68.628]
[1748431851568,16.39887152,173.67,173.59,68.628]
[1748431853093,16.39887152,173.67,173.63,26.0]
[1748431853286,8.94,173.72,173.63,26.0]
[1748431853597,27.5249,173.74,173.63,26.0]
[1748431853598,16.39887152,173.7,173.63,26.0]
[1748431853886,16.39887152,173.71,173.63,26.0]
[1748431854076,16.39887152,173.71,173.64,1.5542]
[1748431854281,16.39887152,173.72,173.66,26.0]
[1748431854469,16.39887152,173.72,173.66,34.94]
[1748431854869,16.39887152,173.73,173.66,34.94]
[1748431856590,16.39887152,173.71,173.66,34.94]
[1748431857569,18.64964886,173.76,173.66,34.94]
[1748431857975,16.39887152,173.73,173.66,34.94]
[1748431858584,16.39887152,173.72,173.66,34.94]
[1748431860200,16.39887152,173.71,173.66,34.94]
[1748431860395,16.39887152,173.7,173.66,34.94]
[1748431860576,16.39887152,173.69,173.66,34.94]
[1748431860769,16.39887152,173.7,173.66,34.94]
[1748431863197,18.64964886,173.75,173.66,34.94]
[1748431863198,16.39887152,173.71,173.66,34.94]
[1748431863401,18.64964886,173.76,173.66,123.04]
[1748431863583,16.39887152,173.72,173.66,123.04]
[1748431865987,16.39887152,173.71,173.66,123.04]
[1748431867176,18.64964886,173.76,173.66,123.04]
[1748431867397,16.39887152,173.72,173.66,271.04]
[1748431867703,16.39887152,173.73,173.66,271.04]
[1748431868708,16.39887152,173.72,173.66,271.04]
[1748431869289,16.39887152,173.71,173.66,271.04]
[1748431869494,16.39887152,173.71,173.66,305.94]
[1748431873216,16.39887152,173.72,173.66,305.94]
[1748431874814,16.39887152,173.73,173.66,305.94]
[1748431877914,8.94,173.77,173.66,305.94]
[1748431878124,10.48782903,173.74,173.66,312.2249]
[1748431878414,10.48782903,173.75,173.66,312.2249]
[1748431878607,10.48782903,173.76,173.67,1.5416]
[1748431879198,10.48782903,173.77,173.67,1.5416]
[1748431879414,10.48782903,173.75,173.7,26.0]
[1748431879604,10.48782903,173.74,173.7,114.1]
[1748431880004,16.38538482,173.74,173.7,114.1]
[1748431883126,16.38538482,173.75,173.7,114.1]
[1748431885737,18.64964886,173.79,173.7,114.1]
[1748431885949,16.38538482,173.75,173.7,114.1]
[1748431888405,16.38538482,173.76,173.7,114.1]
[1748431888908,16.38538482,173.76,173.7,148.98]
[1748431890117,16.38538482,173.76,173.7,157.92]
[1748431892842,16.38538482,173.76,173.7,305.92]
[1748431895831,16.38538482,173.77,173.71,7.6712]
[1748431898721,16.38538482,173.78,173.71,243.7712]
[1748431898926,16.38538482,173.77,173.71,243.7712]
[1748431899236,16.38538482,173.76,173.71,243.7712]
[1748431900013,10.48336964,173.76,173.71,243.7712]
[1748431901134,8.94,173.82,173.71,243.7712]
[1748431901338,10.48336964,173.77,173.71,243.7712]
[1748431908335,8.94,173.82,173.71,243.7712]
[1748431908547,10.48336964,173.77,173.71,243.7712]
[1748431909150,10.48336964,173.78,173.71,243.7712]
[1748431914246,10.48336964,173.79,173.71,243.7712]
[1748431914749,18.64964886,173.83,173.71,243.7712]
[1748431914938,10.48336964,173.79,173.71,243.7712]
[1748431915663,10.48336964,173.77,173.71,243.7712]
[1748431917450,18.64964886,173.83,173.71,243.7712]
[1748431917967,10.48336964,173.79,173.71,243.7712]
[1748431918739,10.48336964,173.77,173.72,8.94]
[1748431920440,18.64964886,173.83,173.72,8.94]
[1748431920662,10.48336964,173.78,173.72,97.04]
[1748431921859,18.64964886,173.83,173.72,97.04]
[1748431922355,10.48336964,173.8,173.72,97.04]
[1748431922947,10.48336964,173.79,173.72,97.04]
[1748431923168,10.48336964,173.79,173.72,245.04]
[1748431925867,10.48336964,173.78,173.72,245.04]
[1748431926943,10.48336964,173.77,173.72,245.04]
[1748431928345,10.48336964,173.77,173.72,97.04]
[1748431929052,18.64964886,173.83,173.72,97.04]
[1748431929369,10.48336964,173.77,173.72,97.04]
[1748431938185,10.48336964,173.77,173.72,88.1]
[1748431938565,10.48336964,173.78,173.72,88.1]
[1748431939561,18.64964886,173.83,173.72,88.1]
[1748431939767,10.48336964,173.78,173.72,88.1]
[1748431942762,10.48336964,173.78,173.72,97.04]
[1748431948986,10.48336964,173.78,173.72,245.04]
[1748431949993,10.48336964,173.79,173.72,245.04]
[1748431951593,10.48336964,173.79,173.73,26.0]
[1748431952590,10.48336964,173.8,173.73,26.0]
[1748431952793,10.4649,173.85,173.74,1.6437]
[1748431952794,8.94,173.85,173.74,1.6437]
[1748431953099,10.48336964,173.82,173.74,263.7437]
[1748431953390,10.48336964,173.81,173.74,263.7437]
[1748431954391,18.64964886,173.84,173.74,263.7437]
[1748431954598,10.48336964,173.82,173.74,263.7437]
[1748431955184,8.94,173.85,173.75,6.5555]
[1748431955389,10.48336964,173.84,173.77,26.0]
[1748431955728,10.48336964,173.84,173.78,1.5738]
[1748431955896,10.48336964,173.84,173.78,89.6738]
[1748431956197,10.48336964,173.84,173.78,98.6138]
[1748431956900,18.64964886,173.86,173.78,98.6138]
[1748431956901,10.48336964,173.83,173.78,98.6138]
[1748431957083,10.48336964,173.82,173.78,98.6138]
[1748431957279,18.64964886,173.86,173.78,98.6138]
[1748431957280,10.48336964,173.81,173.78,98.6138]
[1748431957487,10.48336964,173.8,173.78,97.04]
[1748431958777,10.48336964,173.81,173.78,97.04]
[1748431964802,10.48336964,173.8,173.78,97.04]
[1748431969506,10.48336964,173.8,173.78,88.1]
[1748431973102,10.48336964,173.79,173.78,88.1]
[1748431987417,10.48336964,173.8,173.78,88.1]
[1748431988238,8.94,173.86,173.78,88.1]
[1748431988400,10.48336964,173.82,173.78,88.1]
[1748431989625,10.48336964,173.81,173.78,88.1]
[1748431991913,18.64964886,173.85,173.78,88.1]
[1748431992114,10.48336964,173.81,173.78,88.1]
[1748431993642,10.48336964,173.83,173.78,88.1]
[1748431994039,10.48336964,173.83,173.79,1.5851]
[1748431996045,10.48336964,173.82,173.79,1.5851]
[1748431999545,10.48336964,173.82,173.79,89.6851]
[1748432000761,10.48336964,173.81,173.79,88.1]
[1748432005442,10.48336964,173.83,173.79,88.1]
[1748432007430,18.64964886,173.85,173.79,88.1]
[1748432007643,10.48336964,173.8,173.79,88.1]
[1748432012649,10.48336964,173.81,173.79,88.1]
[1748432013034,18.64964886,173.85,173.79,88.1]
[1748432013236,10.48336964,173.84,173.79,88.1]
[1748432014148,18.64964886,173.88,173.79,88.1]
[1748432014332,10.48336964,173.87,173.8,36.4765]
[1748432014530,10.48336964,173.87,173.8,272.5765]
[1748432019357,10.48336964,173.89,173.8,272.5765]
[1748432019671,10.48336964,173.9,173.8,272.5765]
[1748432019852,10.48336964,173.9,173.84,26.0]
[1748432020049,18.64964886,173.94,173.84,148.96]
[1748432020254,10.48336964,173.91,173.84,296.96]
[1748432020645,18.64964886,173.94,173.84,296.96]
[1748432020854,10.48336964,173.91,173.85,1.5985]
[1748432021068,10.48336964,173.92,173.85,10.5185]
[1748432021235,8.92,173.96,173.85,246.6185]
[1748432021236,10.48336964,173.93,173.85,246.6185]
[1748432021761,10.48336964,173.92,173.85,246.6185]
[1748432021965,16.35041588,173.92,173.85,246.6185]
[1748432024573,16.35041588,173.91,173.85,246.6185]
[1748432025451,35.00006474,173.97,173.89,26.0]
[1748432025452,18.64964886,173.97,173.89,26.0]
[1748432025657,16.35041588,173.95,173.89,114.1]
[1748432025990,16.35041588,173.94,173.89,114.1]
[1748432026482,16.35041588,173.93,173.89,114.1]
[1748432028151,18.64964886,173.97,173.89,114.1]
[1748432028668,16.35041588,173.94,173.89,114.1]
[1748432031061,6.68380321,173.99,173.9,1.5267]
[1748432031263,16.35041588,173.97,173.9,1.5267]
[1748432031467,16.35041588,173.97,173.9,89.6267]
[1748432032062,16.35041588,173.96,173.9,89.6267]
[1748432034777,16.35041588,173.96,173.9,237.6267]
[1748432035072,8.92,174.0,173.93,26.0]
[1748432035274,16.35041588,173.99,173.93,114.1]
[1748432035475,16.35041588,174.0,173.93,297.0]
[1748432035865,18.64964886,174.04,173.94,1.5233]
[1748432036066,16.35041588,174.01,173.94,1.5233]
[1748432037270,18.64964886,174.04,173.94,1.5233]
[1748432037480,16.35041588,174.02,173.96,26.0]
[1748432037783,18.64964886,174.04,173.96,26.0]
[1748432037957,16.35041588,174.02,173.96,26.0]
[1748432038162,18.64964886,174.04,173.96,26.0]
[1748432038356,16.35041588,174.02,173.96,26.0]
[1748432038757,15.2565,174.1,173.97,8.92]
[1748432038961,16.35041588,174.04,173.97,8.92]
[1748432039275,16.35041588,174.03,173.97,8.92]
[1748432041157,16.35041588,174.04,173.98,34.92]
[1748432041361,16.35041588,174.04,173.99,26.0]
[1748432042278,18.64964886,174.08,173.99,26.0]
[1748432042505,8.92,174.1,174.01,26.0]
[1748432042795,16.35041588,174.06,174.01,26.0]
[1748432043000,16.35041588,174.04,174.01,262.1]
[1748432043160,16.35041588,174.04,174.01,114.1]
[1748432043359,16.35041588,174.05,174.01,114.1]
[1748432044472,16.35041588,174.02,174.01,114.1]
[1748432044680,16.35041588,174.02,174.01,88.1]
[1748432047176,35.00006474,174.02,174.01,88.1]
[1748432050295,35.00006474,174.02,173.97,77.42]
[1748432050513,35.00006474,174.02,173.97,68.5]
[1748432050514,16.35041588,173.98,173.97,68.5]
[1748432051421,16.35041588,173.98,173.95,26.0]
[1748432051591,16.35041588,173.96,173.95,26.0]
[1748432053301,18.64964886,174.03,173.95,26.0]
[1748432053501,16.35041588,173.96,173.95,26.0]
[1748432054019,16.35041588,173.96,173.92,10.521]
[1748432054207,16.35041588,173.93,173.92,9.0]
[1748432054517,16.35041588,173.93,173.9,26.0]
[1748432054705,16.35041588,173.91,173.9,26.0]
[1748432055530,16.35041588,173.91,173.88,1.5504]
[1748432055702,16.35041588,173.89,173.87,9.0]
[1748432055908,16.35041588,173.88,173.87,35.0]
[1748432057008,16.35041588,173.88,173.87,77.5]